[Event "Titled Tuesday Blitz August 08 Early 2023"]
[White "Bach Ngoc Thuy Duong"]
[Black "Vaibhav, Suri"]
[WhiteFideId "12408956"]
[BlackFideId "5045185"]
[WhiteElo "2488"]
[BlackElo "2721"]
[Result "1-0"]
[Round "9"]
[TimeControl "180+1"]
[Date "2023.08.08"]
[WhiteClock "0:00:08"]
[BlackClock "0:01:07"]
[Board "83"]

1. d4 {[%clk 0:03:00]}  Nf6 {[%clk 0:02:55]} 2. c4 {[%clk 0:02:59]}  e6 {[%clk 0:02:55]} 3. Nc3 {[%clk 0:02:56]}  c5 {[%clk 0:02:52]} 4. d5 {[%clk 0:02:56]}  exd5 {[%clk 0:02:52]} 5. cxd5 {[%clk 0:02:57]}  g6 {[%clk 0:02:53]} 6. e4 {[%clk 0:02:57]}  Bg7 {[%clk 0:02:53]} 7. f4 {[%clk 0:02:33]}  O-O {[%clk 0:02:47]} 8. e5 {[%clk 0:02:28]}  Nh5 {[%clk 0:02:40]} 9. Nf3 {[%clk 0:02:25]}  d6 {[%clk 0:02:40]} 10. Be3 {[%clk 0:01:26]}  Bg4 {[%clk 0:02:08]} 11. Be2 {[%clk 0:01:25]}  Bxf3 {[%clk 0:02:06]} 12. Bxf3 {[%clk 0:01:23]}  dxe5 {[%clk 0:02:06]} 13. fxe5 {[%clk 0:01:15]}  Bxe5 {[%clk 0:02:00]} 14. Bxh5 {[%clk 0:01:14]}  Qh4+ {[%clk 0:01:59]} 15. Bf2 {[%clk 0:01:13]}  Qxh5 {[%clk 0:01:59]} 16. Qxh5 {[%clk 0:01:12]}  gxh5 {[%clk 0:02:00]} 17. Bxc5 {[%clk 0:01:12]}  Rc8 {[%clk 0:01:57]} 18. Bf2 {[%clk 0:00:42]}  Rxc3 {[%clk 0:01:40]} 19. bxc3 {[%clk 0:00:40]}  Bxc3+ {[%clk 0:01:41]} 20. Ke2 {[%clk 0:00:40]}  Bxa1 {[%clk 0:01:41]} 21. Rxa1 {[%clk 0:00:41]}  Nd7 {[%clk 0:01:42]} 22. Rc1 {[%clk 0:00:35]}  Nf6 {[%clk 0:01:42]} 23. d6 {[%clk 0:00:29]}  Rd8 {[%clk 0:01:42]} 24. Rc7 {[%clk 0:00:17]}  Rxd6 {[%clk 0:01:36]} 25. Rxb7 {[%clk 0:00:17]}  a6 {[%clk 0:01:36]} 26. h3 {[%clk 0:00:14]}  Kg7 {[%clk 0:01:36]} 27. Be3 {[%clk 0:00:11]}  Kg6 {[%clk 0:01:36]} 28. Kf3 {[%clk 0:00:10]}  Nd5 {[%clk 0:01:33]} 29. Bd4 {[%clk 0:00:10]}  f6 {[%clk 0:01:32]} 30. Bb2 {[%clk 0:00:09]}  Rc6 {[%clk 0:01:28]} 31. Rd7 {[%clk 0:00:08]}  Nb6 {[%clk 0:01:27]} 32. Rd3 {[%clk 0:00:07]}  Nc4 {[%clk 0:01:27]} 33. Bc3 {[%clk 0:00:06]}  Nd6 {[%clk 0:01:25]} 34. Bd2 {[%clk 0:00:05]}  Nf7 {[%clk 0:01:23]} 35. Bf4 {[%clk 0:00:04]}  Kf5 {[%clk 0:01:23]} 36. g4+ {[%clk 0:00:04]}  hxg4+ {[%clk 0:01:23]} 37. hxg4+ {[%clk 0:00:05]}  Kg6 {[%clk 0:01:24]} 38. a3 {[%clk 0:00:04]}  Rc4 {[%clk 0:01:24]} 39. Rd7 {[%clk 0:00:03]}  Ra4 {[%clk 0:01:21]} 40. Rd3 {[%clk 0:00:03]}  h6 {[%clk 0:01:15]} 41. Rc3 {[%clk 0:00:03]}  Ra5 {[%clk 0:01:12]} 42. Kg3 {[%clk 0:00:03]}  Ng5 {[%clk 0:01:12]} 43. Bxg5 {[%clk 0:00:02]}  hxg5 {[%clk 0:01:08]} 44. Rd3 {[%clk 0:00:03]}  Ra4 {[%clk 0:01:09]} 45. Re3 {[%clk 0:00:03]}  Kf7 {[%clk 0:01:09]} 46. Rd3 {[%clk 0:00:03]}  Ke6 {[%clk 0:01:08]} 47. Re3+ {[%clk 0:00:03]}  Kd6 {[%clk 0:01:08]} 48. Rf3 {[%clk 0:00:04]}  Ke5 {[%clk 0:01:09]} 49. Rf5+ {[%clk 0:00:03]}  Ke6 {[%clk 0:01:07]} 50. Rf3 {[%clk 0:00:03]}  a5 {[%clk 0:01:07]} 51. Re3+ {[%clk 0:00:04]}  Kd5 {[%clk 0:01:07]} 52. Rf3 {[%clk 0:00:04]}  Ke5 {[%clk 0:01:08]} 53. Re3+ {[%clk 0:00:04]}  Re4 {[%clk 0:01:07]} 54. Rc3 {[%clk 0:00:04]}  a4 {[%clk 0:01:07]} 55. Rf3 {[%clk 0:00:03]}  Rf4 {[%clk 0:01:07]} 56. Rxf4 {[%clk 0:00:03]}  gxf4+ {[%clk 0:01:05]} 57. Kf3 {[%clk 0:00:04]}  Kd4 {[%clk 0:01:03]} 58. Kxf4 {[%clk 0:00:05]}  Kc3 {[%clk 0:01:04]} 59. Kf5 {[%clk 0:00:05]}  Kb3 {[%clk 0:01:05]} 60. Kxf6 {[%clk 0:00:05]}  Kxa3 {[%clk 0:01:06]} 61. g5 {[%clk 0:00:06]}  Kb3 {[%clk 0:01:06]} 62. g6 {[%clk 0:00:07]}  a3 {[%clk 0:01:07]} 63. g7 {[%clk 0:00:07]}  a2 {[%clk 0:01:08]} 64. g8=Q+ {[%clk 0:00:08]}  Kc2 {[%clk 0:01:07]} 65. Qxa2+ {[%clk 0:00:08]} 1-0


[Site "https://www.chess.com"]

[Event "Titled Tuesday Blitz August 08 Early 2023"]
[White "Kuznetsov, Mikhail"]
[Black "Djordjevic, Vuk"]
[WhiteFideId "4117190"]
[BlackFideId "902098"]
[WhiteElo "2487"]
[BlackElo "2695"]
[Result "0-1"]
[Round "9"]
[TimeControl "180+1"]
[Date "2023.08.08"]
[WhiteClock "0:00:03"]
[BlackClock "0:00:06"]
[Board "84"]

1. Nf3 {[%clk 0:02:40]}  Nf6 {[%clk 0:02:57]} 2. g3 {[%clk 0:02:39]}  e6 {[%clk 0:02:58]} 3. Bg2 {[%clk 0:02:39]}  d5 {[%clk 0:02:59]} 4. O-O {[%clk 0:02:39]}  Be7 {[%clk 0:02:59]} 5. d4 {[%clk 0:02:39]}  O-O {[%clk 0:03:00]} 6. c4 {[%clk 0:02:40]}  dxc4 {[%clk 0:03:01]} 7. Qa4 {[%clk 0:02:35]}  a6 {[%clk 0:02:59]} 8. Qxc4 {[%clk 0:02:35]}  b5 {[%clk 0:03:00]} 9. Qc2 {[%clk 0:02:35]}  Bb7 {[%clk 0:02:59]} 10. Bg5 {[%clk 0:02:35]}  Nc6 {[%clk 0:02:58]} 11. Rd1 {[%clk 0:02:30]}  Rc8 {[%clk 0:02:49]} 12. e3 {[%clk 0:02:19]}  Nb4 {[%clk 0:02:46]} 13. Qe2 {[%clk 0:02:19]}  h6 {[%clk 0:02:36]} 14. Bxf6 {[%clk 0:02:18]}  Bxf6 {[%clk 0:02:37]} 15. a3 {[%clk 0:02:17]}  Nd5 {[%clk 0:02:37]} 16. e4 {[%clk 0:02:01]}  Nb6 {[%clk 0:02:33]} 17. Nbd2 {[%clk 0:01:25]}  Bxd4 {[%clk 0:01:59]} 18. Nb3 {[%clk 0:01:18]}  c5 {[%clk 0:01:59]} 19. Nfxd4 {[%clk 0:01:12]}  cxd4 {[%clk 0:01:58]} 20. Rxd4 {[%clk 0:01:13]}  Qc7 {[%clk 0:01:48]} 21. Rad1 {[%clk 0:01:01]}  Rfd8 {[%clk 0:01:42]} 22. Rxd8+ {[%clk 0:00:59]}  Rxd8 {[%clk 0:01:42]} 23. Rxd8+ {[%clk 0:00:50]}  Qxd8 {[%clk 0:01:42]} 24. Nc5 {[%clk 0:00:49]}  Qc7 {[%clk 0:01:34]} 25. b4 {[%clk 0:00:32]}  Nc4 {[%clk 0:01:05]} 26. Qd3 {[%clk 0:00:30]}  Bc8 {[%clk 0:00:53]} 27. f4 {[%clk 0:00:23]}  Bb7 {[%clk 0:00:44]} 28. Kf2 {[%clk 0:00:18]}  g6 {[%clk 0:00:40]} 29. e5 {[%clk 0:00:09]}  Bxg2 {[%clk 0:00:38]} 30. Kxg2 {[%clk 0:00:10]}  Qc6+ {[%clk 0:00:37]} 31. Kg1 {[%clk 0:00:09]}  Qa8 {[%clk 0:00:19]} 32. Nb3 {[%clk 0:00:02]}  Nxa3 {[%clk 0:00:18]} 33. Nc5 {[%clk 0:00:02]}  Nc4 {[%clk 0:00:18]} 34. h3 {[%clk 0:00:02]}  a5 {[%clk 0:00:17]} 35. bxa5 {[%clk 0:00:01]}  Qxa5 {[%clk 0:00:13]} 36. Nd7 {[%clk 0:00:02]}  Qe1+ {[%clk 0:00:12]} 37. Kg2 {[%clk 0:00:02]}  Qd2+ {[%clk 0:00:11]} 38. Qxd2 {[%clk 0:00:01]}  Nxd2 {[%clk 0:00:12]} 39. Nf6+ {[%clk 0:00:02]}  Kg7 {[%clk 0:00:12]} 40. Kf2 {[%clk 0:00:03]}  b4 {[%clk 0:00:12]} 41. Ke2 {[%clk 0:00:03]}  Nc4 {[%clk 0:00:12]} 42. Kd3 {[%clk 0:00:03]}  b3 {[%clk 0:00:13]} 43. Ne4 {[%clk 0:00:02]}  b2 {[%clk 0:00:12]} 44. Kc2 {[%clk 0:00:03]}  h5 {[%clk 0:00:09]} 45. Nd6 {[%clk 0:00:03]}  Ne3+ {[%clk 0:00:04]} 46. Kxb2 {[%clk 0:00:02]}  Nf1 {[%clk 0:00:03]} 47. Ne4 {[%clk 0:00:03]}  Nh2 {[%clk 0:00:03]} 48. Kc2 {[%clk 0:00:02]}  h4 {[%clk 0:00:03]} 49. gxh4 {[%clk 0:00:02]}  Nf3 {[%clk 0:00:03]} 50. h5 {[%clk 0:00:03]}  gxh5 {[%clk 0:00:04]} 51. Kd3 {[%clk 0:00:03]}  Kg6 {[%clk 0:00:04]} 52. Ke3 {[%clk 0:00:04]}  Nh4 {[%clk 0:00:04]} 53. Nd6 {[%clk 0:00:02]}  Ng2+ {[%clk 0:00:03]} 54. Kf3 {[%clk 0:00:02]}  Ne1+ {[%clk 0:00:03]} 55. Ke4 {[%clk 0:00:02]}  Ng2 {[%clk 0:00:02]} 56. f5+ {[%clk 0:00:02]}  Kg5 {[%clk 0:00:03]} 57. fxe6 {[%clk 0:00:02]}  fxe6 {[%clk 0:00:04]} 58. Kf3 {[%clk 0:00:02]}  Nh4+ {[%clk 0:00:03]} 59. Ke4 {[%clk 0:00:02]}  Ng6 {[%clk 0:00:02]} 60. Nf7+ {[%clk 0:00:01]}  Kh4 {[%clk 0:00:02]} 61. Nd8 {[%clk 0:00:02]}  Nf8 {[%clk 0:00:03]} 62. Kf4 {[%clk 0:00:01]}  Kxh3 {[%clk 0:00:03]} 63. Kg5 {[%clk 0:00:02]}  h4 {[%clk 0:00:03]} 64. Kf6 {[%clk 0:00:03]}  Kg3 {[%clk 0:00:03]} 65. Kf7 {[%clk 0:00:02]}  h3 {[%clk 0:00:04]} 66. Kxf8 {[%clk 0:00:03]}  h2 {[%clk 0:00:04]} 67. Nxe6 {[%clk 0:00:03]}  h1=Q {[%clk 0:00:05]} 68. Ng7 {[%clk 0:00:03]}  Qa8+ {[%clk 0:00:04]} 69. Kf7 {[%clk 0:00:03]}  Qb7+ {[%clk 0:00:04]} 70. Kf6 {[%clk 0:00:04]}  Qb2 {[%clk 0:00:04]} 71. Kf5 {[%clk 0:00:03]}  Qc2+ {[%clk 0:00:04]} 72. Kf6 {[%clk 0:00:03]}  Qc3 {[%clk 0:00:05]} 73. Kf5 {[%clk 0:00:03]}  Qf3+ {[%clk 0:00:05]} 74. Kg6 {[%clk 0:00:02]}  Kf4 {[%clk 0:00:05]} 75. e6 {[%clk 0:00:02]}  Ke5 {[%clk 0:00:05]} 76. e7 {[%clk 0:00:03]}  Qf6+ {[%clk 0:00:05]} 77. Kh7 {[%clk 0:00:02]}  Qxe7 {[%clk 0:00:06]} 78. Kg6 {[%clk 0:00:03]}  Qf6+ {[%clk 0:00:06]} 79. Kh7 {[%clk 0:00:04]}  Qg5 {[%clk 0:00:06]} 80. Kh8 {[%clk 0:00:02]}  Kf6 {[%clk 0:00:06]} 81. Ne8+ {[%clk 0:00:02]}  Kf7 {[%clk 0:00:06]} 82. Nd6+ {[%clk 0:00:03]}  Kf8 {[%clk 0:00:07]} 83. Nf7 {[%clk 0:00:03]}  Qg8# {[%clk 0:00:06]} 0-1


[Site "https://www.chess.com"]

[Event "Titled Tuesday Blitz August 08 Early 2023"]
[White "Godzwon, Iwo"]
[Black "favesaul"]
[WhiteFideId "21802483"]
[WhiteElo "2661"]
[BlackElo "2470"]
[Result "1/2-1/2"]
[Round "9"]
[TimeControl "180+1"]
[Date "2023.08.08"]
[WhiteClock "0:00:26"]
[BlackClock "0:00:08"]
[Board "86"]

1. e4 {[%clk 0:03:00]}  c5 {[%clk 0:02:58]} 2. Nf3 {[%clk 0:02:59]}  e6 {[%clk 0:02:56]} 3. c3 {[%clk 0:02:58]}  d5 {[%clk 0:02:56]} 4. exd5 {[%clk 0:02:55]}  Qxd5 {[%clk 0:02:57]} 5. d4 {[%clk 0:02:47]}  Nf6 {[%clk 0:02:56]} 6. Na3 {[%clk 0:02:44]}  Qd8 {[%clk 0:02:55]} 7. Bf4 {[%clk 0:02:37]}  Nc6 {[%clk 0:02:44]} 8. dxc5 {[%clk 0:02:27]}  Qxd1+ {[%clk 0:02:43]} 9. Rxd1 {[%clk 0:02:26]}  Bxc5 {[%clk 0:02:43]} 10. Nb5 {[%clk 0:02:24]}  O-O {[%clk 0:02:37]} 11. Be2 {[%clk 0:02:20]}  a6 {[%clk 0:02:07]} 12. Bd6 {[%clk 0:02:11]}  Bxd6 {[%clk 0:02:05]} 13. Nxd6 {[%clk 0:02:12]}  b5 {[%clk 0:02:00]} 14. O-O {[%clk 0:02:12]}  Bd7 {[%clk 0:01:58]} 15. Ng5 {[%clk 0:02:09]}  Rfb8 {[%clk 0:01:52]} 16. Bf3 {[%clk 0:02:08]}  e5 {[%clk 0:01:36]} 17. Nde4 {[%clk 0:02:04]}  Nxe4 {[%clk 0:01:34]} 18. Bxe4 {[%clk 0:02:01]}  Be8 {[%clk 0:01:33]} 19. Bxh7+ {[%clk 0:01:59]}  Kf8 {[%clk 0:01:32]} 20. Be4 {[%clk 0:01:59]}  b4 {[%clk 0:01:30]} 21. c4 {[%clk 0:01:57]}  Ra7 {[%clk 0:01:24]} 22. f4 {[%clk 0:01:56]}  exf4 {[%clk 0:01:19]} 23. Rxf4 {[%clk 0:01:56]}  Re7 {[%clk 0:01:06]} 24. Rd6 {[%clk 0:01:20]}  Ne5 {[%clk 0:01:04]} 25. Bd5 {[%clk 0:01:16]}  Nd3 {[%clk 0:00:54]} 26. Rf1 {[%clk 0:01:13]}  Kg8 {[%clk 0:00:50]} 27. b3 {[%clk 0:01:07]}  Nc5 {[%clk 0:00:44]} 28. Kf2 {[%clk 0:01:00]}  a5 {[%clk 0:00:44]} 29. Kf3 {[%clk 0:00:53]}  a4 {[%clk 0:00:44]} 30. Ne4 {[%clk 0:00:53]}  axb3 {[%clk 0:00:18]} 31. Nxc5 {[%clk 0:00:51]}  bxa2 {[%clk 0:00:18]} 32. Nb3 {[%clk 0:00:51]}  Ba4 {[%clk 0:00:18]} 33. c5 {[%clk 0:00:52]}  Rbe8 {[%clk 0:00:16]} 34. Kg4 {[%clk 0:00:47]}  Re4+ {[%clk 0:00:10]} 35. Bxe4 {[%clk 0:00:42]}  Rxe4+ {[%clk 0:00:11]} 36. Kf3 {[%clk 0:00:42]}  Rc4 {[%clk 0:00:09]} 37. Na1 {[%clk 0:00:40]}  Rxc5 {[%clk 0:00:08]} 38. Ra6 {[%clk 0:00:39]}  b3 {[%clk 0:00:07]} 39. Rxa4 {[%clk 0:00:37]}  b2 {[%clk 0:00:07]} 40. Rxa2 {[%clk 0:00:38]}  Rc1 {[%clk 0:00:08]} 41. Rxb2 {[%clk 0:00:30]}  Rxf1+ {[%clk 0:00:08]} 42. Kg4 {[%clk 0:00:30]}  Rxa1 {[%clk 0:00:08]} 43. h4 {[%clk 0:00:31]}  g6 {[%clk 0:00:08]} 44. Kh3 {[%clk 0:00:29]}  Kg7 {[%clk 0:00:08]} 45. g4 {[%clk 0:00:30]}  Ra3+ {[%clk 0:00:08]} 46. Kg2 {[%clk 0:00:30]}  Rc3 {[%clk 0:00:08]} 47. Rb4 {[%clk 0:00:29]}  Ra3 {[%clk 0:00:08]} 48. g5 {[%clk 0:00:29]}  Rc3 {[%clk 0:00:08]} 49. Rf4 {[%clk 0:00:26]}  Ra3 {[%clk 0:00:08]} 1/2-1/2


[Site "https://www.chess.com"]

[Event "Titled Tuesday Blitz August 08 Early 2023"]
[White "TrompeterImEther"]
[Black "Goh, Wei Ming Kevin"]
[BlackFideId "5800706"]
[WhiteElo "2459"]
[BlackElo "2635"]
[Result "0-1"]
[Round "9"]
[TimeControl "180+1"]
[Date "2023.08.08"]
[WhiteClock "0:00:02"]
[BlackClock "0:00:32"]
[Board "89"]

1. e4 {[%clk 0:03:00]}  e6 {[%clk 0:02:59]} 2. d4 {[%clk 0:03:00]}  d5 {[%clk 0:02:59]} 3. Nc3 {[%clk 0:03:01]}  Bb4 {[%clk 0:02:58]} 4. e5 {[%clk 0:02:59]}  c5 {[%clk 0:02:57]} 5. a3 {[%clk 0:03:00]}  Bxc3+ {[%clk 0:02:57]} 6. bxc3 {[%clk 0:03:00]}  Ne7 {[%clk 0:02:58]} 7. h4 {[%clk 0:03:01]}  Nbc6 {[%clk 0:02:54]} 8. h5 {[%clk 0:03:00]}  Qa5 {[%clk 0:02:50]} 9. Bd2 {[%clk 0:02:56]}  h6 {[%clk 0:02:48]} 10. Qg4 {[%clk 0:02:46]}  Kf8 {[%clk 0:02:44]} 11. a4 {[%clk 0:02:27]}  Qc7 {[%clk 0:02:12]} 12. Rh3 {[%clk 0:02:20]}  Nf5 {[%clk 0:02:09]} 13. Nf3 {[%clk 0:02:05]}  f6 {[%clk 0:01:52]} 14. Qf4 {[%clk 0:01:44]}  fxe5 {[%clk 0:01:44]} 15. dxe5 {[%clk 0:01:45]}  Qf7 {[%clk 0:01:37]} 16. g4 {[%clk 0:01:30]}  Nfe7 {[%clk 0:01:37]} 17. Nh4 {[%clk 0:01:31]}  Qxf4 {[%clk 0:01:33]} 18. Bxf4 {[%clk 0:01:32]}  Ke8 {[%clk 0:01:29]} 19. Bd3 {[%clk 0:01:19]}  Rf8 {[%clk 0:01:27]} 20. Bg3 {[%clk 0:01:19]}  Bd7 {[%clk 0:01:23]} 21. Kd2 {[%clk 0:01:15]}  Kd8 {[%clk 0:01:18]} 22. f4 {[%clk 0:01:12]}  Kc7 {[%clk 0:01:17]} 23. g5 {[%clk 0:00:39]}  Be8 {[%clk 0:01:02]} 24. Ng6 {[%clk 0:00:20]}  Nxg6 {[%clk 0:00:51]} 25. hxg6 {[%clk 0:00:20]}  c4 {[%clk 0:00:52]} 26. Be2 {[%clk 0:00:16]}  hxg5 {[%clk 0:00:49]} 27. Rh7 {[%clk 0:00:13]}  Rg8 {[%clk 0:00:48]} 28. Bh5 {[%clk 0:00:08]}  Ne7 {[%clk 0:00:49]} 29. fxg5 {[%clk 0:00:06]}  Bxg6 {[%clk 0:00:49]} 30. Bxg6 {[%clk 0:00:05]}  Nxg6 {[%clk 0:00:50]} 31. Ke3 {[%clk 0:00:04]}  Raf8 {[%clk 0:00:49]} 32. Rah1 {[%clk 0:00:03]}  Rf5 {[%clk 0:00:49]} 33. R1h5 {[%clk 0:00:02]}  Nxe5 {[%clk 0:00:44]} 34. Kd4 {[%clk 0:00:02]}  Kc6 {[%clk 0:00:33]} 35. Bxe5 {[%clk 0:00:02]}  Rf2 {[%clk 0:00:33]} 36. Bg3 {[%clk 0:00:01]}  Re2 {[%clk 0:00:32]} 37. Rh3 {[%clk 0:00:02]}  Re4# {[%clk 0:00:32]} 0-1


[Site "https://www.chess.com"]

[Event "Titled Tuesday Blitz August 08 Early 2023"]
[White "Hrbek, Stepan"]
[Black "HamedWafa4"]
[WhiteFideId "393479"]
[WhiteElo "2445"]
[BlackElo "2606"]
[Result "1-0"]
[Round "9"]
[TimeControl "180+1"]
[Date "2023.08.08"]
[WhiteClock "0:00:07"]
[BlackClock "0:00:00"]
[Board "92"]

1. d4 {[%clk 0:03:00]}  Nf6 {[%clk 0:02:59]} 2. Nf3 {[%clk 0:03:01]}  e6 {[%clk 0:02:56]} 3. Bf4 {[%clk 0:03:01]}  b6 {[%clk 0:02:55]} 4. e3 {[%clk 0:03:02]}  Bb7 {[%clk 0:02:54]} 5. Be2 {[%clk 0:03:02]}  Be7 {[%clk 0:02:54]} 6. h3 {[%clk 0:03:02]}  O-O {[%clk 0:02:54]} 7. O-O {[%clk 0:03:02]}  d5 {[%clk 0:02:50]} 8. c4 {[%clk 0:03:03]}  Nbd7 {[%clk 0:02:47]} 9. Nc3 {[%clk 0:03:03]}  a6 {[%clk 0:02:37]} 10. cxd5 {[%clk 0:03:00]}  exd5 {[%clk 0:02:38]} 11. Ne5 {[%clk 0:02:55]}  Rc8 {[%clk 0:02:36]} 12. Rc1 {[%clk 0:02:48]}  c5 {[%clk 0:02:30]} 13. dxc5 {[%clk 0:02:46]}  bxc5 {[%clk 0:02:31]} 14. Bf3 {[%clk 0:02:42]}  Nb6 {[%clk 0:02:20]} 15. Qe2 {[%clk 0:02:28]}  Bd6 {[%clk 0:02:17]} 16. Bh2 {[%clk 0:01:47]}  Re8 {[%clk 0:02:14]} 17. Ng4 {[%clk 0:01:47]}  Bxh2+ {[%clk 0:02:09]} 18. Kxh2 {[%clk 0:01:46]}  Ne4 {[%clk 0:02:08]} 19. Bxe4 {[%clk 0:01:36]}  dxe4 {[%clk 0:02:06]} 20. Kg1 {[%clk 0:01:37]}  f5 {[%clk 0:01:59]} 21. Nh2 {[%clk 0:01:36]}  Qd3 {[%clk 0:01:56]} 22. Qxd3 {[%clk 0:01:36]}  exd3 {[%clk 0:01:57]} 23. Rfd1 {[%clk 0:01:36]}  c4 {[%clk 0:01:56]} 24. Nf3 {[%clk 0:01:36]}  Bxf3 {[%clk 0:01:51]} 25. gxf3 {[%clk 0:01:37]}  Red8 {[%clk 0:01:46]} 26. Nb1 {[%clk 0:01:38]}  Na4 {[%clk 0:01:39]} 27. Rd2 {[%clk 0:01:35]}  f4 {[%clk 0:01:35]} 28. Na3 {[%clk 0:01:26]}  Nxb2 {[%clk 0:01:10]} 29. Rxb2 {[%clk 0:01:20]}  c3 {[%clk 0:01:10]} 30. Rbb1 {[%clk 0:00:32]}  c2 {[%clk 0:01:06]} 31. Nxc2 {[%clk 0:00:32]}  dxc2 {[%clk 0:01:06]} 32. Ra1 {[%clk 0:00:33]}  fxe3 {[%clk 0:01:04]} 33. fxe3 {[%clk 0:00:33]}  Rd2 {[%clk 0:01:02]} 34. Re1 {[%clk 0:00:17]}  Kf7 {[%clk 0:00:29]} 35. Rac1 {[%clk 0:00:16]}  Kf6 {[%clk 0:00:29]} 36. Rf1 {[%clk 0:00:17]}  Kg5 {[%clk 0:00:28]} 37. Rf2 {[%clk 0:00:17]}  Rd1+ {[%clk 0:00:26]} 38. Rf1 {[%clk 0:00:17]}  Rd3 {[%clk 0:00:25]} 39. Kf2 {[%clk 0:00:16]}  Rd2+ {[%clk 0:00:23]} 40. Kg3 {[%clk 0:00:13]}  h5 {[%clk 0:00:20]} 41. h4+ {[%clk 0:00:13]}  Kf5 {[%clk 0:00:20]} 42. Rf2 {[%clk 0:00:13]}  Rcd8 {[%clk 0:00:18]} 43. Rxc2 {[%clk 0:00:13]}  Rxf2 {[%clk 0:00:18]} 44. Kxf2 {[%clk 0:00:12]}  Rd3 {[%clk 0:00:19]} 45. Rc5+ {[%clk 0:00:11]}  Kg6 {[%clk 0:00:17]} 46. Ra5 {[%clk 0:00:11]}  Rd6 {[%clk 0:00:17]} 47. f4 {[%clk 0:00:11]}  Rb6 {[%clk 0:00:15]} 48. Kf3 {[%clk 0:00:10]}  Kh6 {[%clk 0:00:15]} 49. e4 {[%clk 0:00:08]}  Kg6 {[%clk 0:00:12]} 50. f5+ {[%clk 0:00:06]}  Kf6 {[%clk 0:00:12]} 51. Kf4 {[%clk 0:00:06]}  Rc6 {[%clk 0:00:11]} 52. e5+ {[%clk 0:00:06]}  Kf7 {[%clk 0:00:12]} 53. Kg5 {[%clk 0:00:05]}  Rb6 {[%clk 0:00:07]} 54. Kxh5 {[%clk 0:00:04]}  Kg8 {[%clk 0:00:06]} 55. Kg5 {[%clk 0:00:04]}  Kf7 {[%clk 0:00:05]} 56. h5 {[%clk 0:00:04]}  Rc6 {[%clk 0:00:05]} 57. e6+ {[%clk 0:00:04]}  Kg8 {[%clk 0:00:04]} 58. Kg6 {[%clk 0:00:03]}  Rb6 {[%clk 0:00:04]} 59. h6 {[%clk 0:00:03]}  gxh6 {[%clk 0:00:03]} 60. Kf6 {[%clk 0:00:03]}  Kf8 {[%clk 0:00:04]} 61. Ra3 {[%clk 0:00:03]}  h5 {[%clk 0:00:04]} 62. Rh3 {[%clk 0:00:03]}  Kg8 {[%clk 0:00:01]} 63. Rxh5 {[%clk 0:00:04]}  Rb8 {[%clk 0:00:02]} 64. Rg5+ {[%clk 0:00:04]}  Kf8 {[%clk 0:00:01]} 65. e7+ {[%clk 0:00:05]}  Ke8 {[%clk 0:00:02]} 66. Rg8+ {[%clk 0:00:06]}  Kd7 {[%clk 0:00:00]} 67. Rxb8 {[%clk 0:00:07]} 1-0


[Site "https://www.chess.com"]

[Event "Titled Tuesday Blitz August 08 Early 2023"]
[White "Psychonerd5"]
[Black "Heinemann, Josefine"]
[BlackFideId "12900460"]
[WhiteElo "2430"]
[BlackElo "2587"]
[Result "0-1"]
[Round "9"]
[TimeControl "180+1"]
[Date "2023.08.08"]
[WhiteClock "0:00:00"]
[BlackClock "0:00:21"]
[Board "94"]

1. c4 {[%clk 0:03:00]}  g6 {[%clk 0:02:52]} 2. g3 {[%clk 0:03:01]}  c5 {[%clk 0:02:49]} 3. Bg2 {[%clk 0:03:01]}  Bg7 {[%clk 0:02:49]} 4. Nc3 {[%clk 0:03:01]}  Nc6 {[%clk 0:02:49]} 5. e3 {[%clk 0:03:00]}  d6 {[%clk 0:02:50]} 6. Nge2 {[%clk 0:03:01]}  e6 {[%clk 0:02:50]} 7. O-O {[%clk 0:03:00]}  Nge7 {[%clk 0:02:51]} 8. d4 {[%clk 0:03:00]}  O-O {[%clk 0:02:51]} 9. b3 {[%clk 0:02:58]}  Rb8 {[%clk 0:02:51]} 10. Bb2 {[%clk 0:02:57]}  b6 {[%clk 0:02:47]} 11. Qc2 {[%clk 0:02:37]}  Bb7 {[%clk 0:02:45]} 12. d5 {[%clk 0:02:36]}  Nb4 {[%clk 0:02:38]} 13. Qd2 {[%clk 0:02:32]}  exd5 {[%clk 0:02:39]} 14. cxd5 {[%clk 0:02:27]}  Ba6 {[%clk 0:02:37]} 15. Rfd1 {[%clk 0:02:10]}  Nd3 {[%clk 0:02:30]} 16. Nf4 {[%clk 0:01:57]}  Nxb2 {[%clk 0:02:29]} 17. Qxb2 {[%clk 0:01:57]}  b5 {[%clk 0:02:25]} 18. b4 {[%clk 0:01:53]}  Bc8 {[%clk 0:02:17]} 19. Rac1 {[%clk 0:01:45]}  a5 {[%clk 0:02:14]} 20. a3 {[%clk 0:01:44]}  Bg4 {[%clk 0:02:04]} 21. f3 {[%clk 0:01:40]}  Bc8 {[%clk 0:01:51]} 22. Qb1 {[%clk 0:01:17]}  axb4 {[%clk 0:01:51]} 23. axb4 {[%clk 0:01:17]}  c4 {[%clk 0:01:50]} 24. e4 {[%clk 0:01:00]}  Qb6+ {[%clk 0:01:43]} 25. Kh1 {[%clk 0:00:59]}  f5 {[%clk 0:01:44]} 26. Ne6 {[%clk 0:00:45]}  Bxe6 {[%clk 0:01:37]} 27. dxe6 {[%clk 0:00:45]}  Ra8 {[%clk 0:01:09]} 28. Nd5 {[%clk 0:00:27]}  Nxd5 {[%clk 0:01:08]} 29. Rxd5 {[%clk 0:00:28]}  fxe4 {[%clk 0:00:55]} 30. Qxe4 {[%clk 0:00:29]}  Qf2 {[%clk 0:00:40]} 31. e7 {[%clk 0:00:23]}  Rfe8 {[%clk 0:00:41]} 32. Rxd6 {[%clk 0:00:20]}  Ra2 {[%clk 0:00:34]} 33. Rg1 {[%clk 0:00:19]}  Re2 {[%clk 0:00:29]} 34. Qd5+ {[%clk 0:00:11]}  Kh8 {[%clk 0:00:29]} 35. Qxb5 {[%clk 0:00:06]}  R2xe7 {[%clk 0:00:24]} 36. Qxc4 {[%clk 0:00:04]}  Re1 {[%clk 0:00:24]} 37. Rd1 {[%clk 0:00:01]}  Rxg1+ {[%clk 0:00:20]} 38. Rxg1 {[%clk 0:00:00]}  h5 {[%clk 0:00:21]} 0-1


[Site "https://www.chess.com"]